{"text_format":"1","workbook":"xlsx","n_sheets":1,"sheets":["Tabelle1"],"not_rendered":{"charts":0,"images":0,"macros":1,"external_links":0,"defined_names":0,"comments":0,"pivot_tables":0},"unopened":[],"bounds":{"document_bytes":16777216,"sheet_cells":100000,"rows_first":2000,"rows_last":500,"rows_between":2000,"halvings":0,"cell_chars":16384,"cell_head_chars":4096},"cells_cut":0,"cells_raw":0,"read":"whole","date_system":"1900"}

{"sheet":"Tabelle1","index":0,"n_rows":70,"n_cols":2,"rows_kept":70,"cut":false,"hidden":false,"merged":[]}
["Wertpapier:","XDWL.F"]
["Kennzahl","Wert"]
["language",{"$f":"yahoodata($B$1,A3)","v":"\"en-US\""}]
["region",{"$f":"yahoodata($B$1,A4)","v":"\"US\""}]
["quoteType","\"ETF\""]
["quoteSourceName","\"Delayed Quote\""]
["triggerable","false"]
["currency","\"EUR\""]
["marketState","\"REGULAR\""]
["tradeable","false"]
["exchange","\"FRA\""]
["shortName","\"X(IE)-MSCI WORLD 1D\""]
["longName","\"Xtrackers MSCI World UCITS ETF 1D\""]
["messageBoardId","\"finmb_254044001\""]
["exchangeTimezoneName","\"Europe/Berlin\""]
["exchangeTimezoneShortName","\"CET\""]
["gmtOffSetMilliseconds","3600000"]
["market",{"$f":"yahoodata($B$1,A18)","v":"dr_"}]
["esgPopulated","false"]
["fiftyTwoWeekLowChange","20.495998"]
["fiftyTwoWeekLowChangePercent","0.4963673"]
["fiftyTwoWeekRange","\"41.292 - 63.45\""]
["fiftyTwoWeekHighChange","-1.6620026"]
["fiftyTwoWeekHighChangePercent","-0.026193893"]
["fiftyTwoWeekLow","41.292"]
["fiftyTwoWeekHigh","63.45"]
["earningsTimestamp","Kennzahl nicht verfügbar!"]
["earningsTimestampStart","Kennzahl nicht verfügbar!"]
["earningsTimestampEnd","Kennzahl nicht verfügbar!"]
["trailingAnnualDividendRate","Kennzahl nicht verfügbar!"]
["trailingPE","Kennzahl nicht verfügbar!"]
["trailingAnnualDividendYield","Kennzahl nicht verfügbar!"]
["epsTrailingTwelveMonths","Kennzahl nicht verfügbar!"]
["epsForward","Kennzahl nicht verfügbar!"]
["epsCurrentYear","Kennzahl nicht verfügbar!"]
["priceEpsCurrentYear","Kennzahl nicht verfügbar!"]
["sharesOutstanding","Kennzahl nicht verfügbar!"]
["bookValue","Kennzahl nicht verfügbar!"]
["fiftyDayAverage","59.87343"]
["fiftyDayAverageChange","1.9145699"]
["fiftyDayAverageChangePercent","0.031976953"]
["twoHundredDayAverage","55.227783"]
["twoHundredDayAverageChange","6.560215"]
["twoHundredDayAverageChangePercent","0.11878469"]
["marketCap","Kennzahl nicht verfügbar!"]
["forwardPE","Kennzahl nicht verfügbar!"]
["priceToBook","Kennzahl nicht verfügbar!"]
["sourceInterval","15"]
["exchangeDataDelayedBy","0"]
["firstTradeDateMilliseconds","1429596000000"]
["priceHint","2"]
["regularMarketChange","0.22399902"]
["regularMarketChangePercent","0.36384743"]
["regularMarketTime","1612348102"]
["regularMarketPrice","61.788"]
["regularMarketDayHigh","61.788"]
["regularMarketDayRange","\"61.688 - 61.788\""]
["regularMarketDayLow","61.688"]
["regularMarketVolume","215"]
["regularMarketPreviousClose","61.564"]
["bid","61.796"]
["ask","61.838"]
["bidSize","800"]
["askSize","800"]
["fullExchangeName","\"Frankfurt\""]
["financialCurrency","Kennzahl nicht verfügbar!"]
["regularMarketOpen","61.688"]
["averageDailyVolume3Month",{"$f":"yahoodata($B$1,A68)","v":"315"}]
["averageDailyVolume10Day","576"]
["symbol",{"$f":"yahoodata($B$1,A70)","v":"\"XDWL.F\""}]